fUSD/lending_fUSD_20260620
["ID","MTS","AMOUNT","RATE_DAILY","PERIOD"]
[425784814,1781888299000,-650.2,0.00036657,30]
[425784809,1781888299000,-658.41,0.00036657,30]
[425784811,1781888299000,-846.54,0.00036657,30]
[425784840,1781888299000,-1214.29,0.00036657,30]
[425784819,1781888299000,-678.01,0.00036657,30]
[425784824,1781888299000,-651.01,0.00036657,30]
[425784821,1781888299000,-500.0,0.00036657,30]
[425784822,1781888299000,-500.0,0.00036657,30]
[425784827,1781888299000,-522.21,0.00036657,30]
[425784823,1781888299000,-734.22,0.00036657,30]
[425784820,1781888299000,-697.26,0.00036657,30]
[425784826,1781888299000,-755.8,0.00036657,30]
[425784825,1781888299000,-1586.38,0.00036657,30]
[425784828,1781888299000,-860.38,0.00036657,30]
[425784830,1781888299000,-500.0,0.00036657,30]
[425784805,1781888299000,-500.0,0.00036657,30]
[425784841,1781888299000,-1675.21,0.00036657,30]
[425784818,1781888299000,-1580.21,0.00036657,30]
[425784803,1781888299000,-643.62,0.00036657,30]
[425784788,1781888299000,-577.97,0.00036657,30]
[425784800,1781888299000,-900.24,0.00036657,30]
[425784831,1781888299000,-512.48,0.00036657,30]
[425784775,1781888299000,-1348.31,0.00036657,30]
[425784776,1781888299000,-664.75,0.00036657,30]
[425784777,1781888299000,-537.97,0.00036657,30]
[425784781,1781888299000,-634.83,0.00036657,30]
[425784779,1781888299000,-1145.24,0.00036657,30]
[425784780,1781888299000,-500.0,0.00036657,30]
[425784782,1781888299000,-594.02,0.00036657,30]
[425784794,1781888299000,-636.13,0.00036657,30]
[425784783,1781888299000,-780.74,0.00036657,30]
[425784784,1781888299000,-743.84,0.00036657,30]
[425784786,1781888299000,-2492.23,0.00036657,30]
[425784799,1781888299000,-918.47,0.00036657,30]
[425784787,1781888299000,-429.75306111,0.00036657,30]
[425784785,1781888299000,-1013.87,0.00036657,30]
[425784791,1781888299000,-574.37,0.00036657,30]
[425784790,1781888299000,-1109.66,0.00036657,30]
[425784792,1781888299000,-695.27,0.00036657,30]
[425784789,1781888299000,-1013.66,0.00036657,30]
[425784796,1781888299000,-620.19,0.00036657,30]
[425784795,1781888299000,-1182.85,0.00036657,30]
[425784797,1781888299000,-628.07,0.00036657,30]
[425784798,1781888299000,-722.6,0.00036657,30]
[425784801,1781888299000,-636.4,0.00036657,30]
[425784804,1781888299000,-2588.84,0.00036657,30]
[425784806,1781888299000,-947.68,0.00036657,30]
[425784793,1781888299000,-2528.15,0.00036657,30]
[425784834,1781888299000,-802.44,0.00036657,30]
[425784778,1781888299000,-500.0,0.00036657,30]
[425784829,1781888299000,-505.49,0.00036657,30]
[425784867,1781888299000,-757.69,0.00036657,30]
[425784869,1781888299000,-693.9,0.00036657,30]
[425784870,1781888299000,-510.64,0.00036657,30]
[425784871,1781888299000,-2137.39,0.00036657,30]
[425784872,1781888299000,-1423.78,0.00036657,30]
[425784868,1781888299000,-1265.07,0.00036657,30]
[425784879,1781888299000,-500.0,0.00036657,2]
[425784873,1781888299000,-1391.17,0.00036657,30]
[425784878,1781888299000,-500.0,0.00036657,30]
[425784875,1781888299000,-592.13,0.00036657,30]
[425784874,1781888299000,-1656.0,0.00036657,30]
[425784877,1781888299000,-857.32,0.00036657,30]
[425784861,1781888299000,-575.14,0.00036657,30]
[425784876,1781888299000,-721.41,0.00036657,30]
[425784882,1781888299000,-1123.62,0.00036657,30]
[425784891,1781888299000,-809.43,0.00036657,30]
[425784880,1781888299000,-534.92,0.00036657,30]
[425784885,1781888299000,-711.69,0.00036657,30]
[425784890,1781888299000,-711.87,0.00036657,30]
[425784883,1781888299000,-3646.26,0.00036657,30]
[425784889,1781888299000,-562.71,0.00036657,30]
[425784888,1781888299000,-500.0,0.00036657,30]
[425784884,1781888299000,-2000.0,0.00036657,4]
[425784887,1781888299000,-631.67,0.00036657,30]
[425784886,1781888299000,-1427.66,0.00036657,30]
[425784892,1781888299000,-5085.36,0.00036657,30]
[425784881,1781888299000,-961.56,0.00036657,30]
[425784858,1781888299000,-958.15,0.00036657,30]
[425784893,1781888299000,-1877.0,0.00036657,2]
[425784859,1781888299000,-621.71,0.00036657,30]
[425784862,1781888299000,-500.0,0.00036657,30]
[425784833,1781888299000,-807.08,0.00036657,30]
[425784835,1781888299000,-526.37,0.00036657,30]
[425784838,1781888299000,-500.0,0.00036657,30]
[425784836,1781888299000,-710.03,0.00036657,30]
[425784837,1781888299000,-1188.41,0.00036657,30]
[425784839,1781888299000,-500.0,0.00036657,30]
[425784842,1781888299000,-500.0,0.00036657,30]
[425784845,1781888299000,-565.87,0.00036657,30]
[425784843,1781888299000,-607.03,0.00036657,30]
[425784849,1781888299000,-853.91,0.00036657,30]
[425784852,1781888299000,-2092.1,0.00036657,30]
[425784850,1781888299000,-500.0,0.00036657,30]
[425784844,1781888299000,-507.45,0.00036657,2]
[425784832,1781888299000,-515.79,0.00036657,30]
[425784848,1781888299000,-575.06,0.00036657,30]
[425784853,1781888299000,-1444.74,0.00036657,30]
[425784863,1781888299000,-721.82,0.00036657,30]
[425784860,1781888299000,-537.57,0.00036657,30]
[425784864,1781888299000,-1000.0,0.00036657,30]
[425784857,1781888299000,-737.33,0.00036657,30]
[425784866,1781888299000,-552.56,0.00036657,30]
[425784865,1781888299000,-1264.79,0.00036657,30]
[425784856,1781888299000,-652.73,0.00036657,30]
[425784854,1781888299000,-650.27,0.00036657,30]
[425784851,1781888299000,-985.23,0.00036657,30]
[425784847,1781888299000,-500.0,0.00036657,30]
[425784846,1781888299000,-607.04,0.00036657,30]
[425784855,1781888299000,-640.19,0.00036657,30]
[425784941,1781888300000,-381.07786889,0.00036712,30]
[425784933,1781888300000,-1095.52,0.00036712,30]
[425784942,1781888300000,-588.74,0.00036712,30]
[425784930,1781888300000,-500.0,0.00036712,30]
[425784921,1781888300000,-2496242.043,0.00036691,120]
[425784926,1781888300000,-769.14,0.00036712,30]
[425784918,1781888300000,-1252.38,0.00036657,30]
[425784922,1781888300000,-200.0,0.000367,14]
[425784919,1781888300000,-196.94481551,0.00036657,30]
[425784931,1781888300000,-531.64,0.00036712,30]
[425784938,1781888300000,-747.58,0.00036712,30]
[425784940,1781888300000,-674.8,0.00036712,30]
[425784932,1781888300000,-578.3,0.00036712,30]
[425784936,1781888300000,-923.44,0.00036712,30]
[425784934,1781888300000,-177.41580264,0.00036712,30]
[425784937,1781888300000,-580.64,0.00036712,30]
[425784927,1781888300000,-544.12,0.00036712,30]
[425784939,1781888300000,-1017.11,0.00036712,30]
[425784943,1781888300000,-996.41,0.00036712,30]
[425784946,1781888300000,-1338.57,0.00036712,30]
[425784945,1781888300000,-258.12226891,0.00036712,30]
[425784948,1781888300000,-1286.29,0.00036712,30]
[425784947,1781888300000,-662.39,0.00036712,30]
[425784944,1781888300000,-517.19,0.00036712,30]
[425784949,1781888300000,-833.48,0.00036712,30]
[425784935,1781888300000,-809.71,0.00036712,30]
[425784928,1781888300000,-536.88,0.00036712,30]
[425784914,1781888300000,-917.69,0.00036657,30]
[425784925,1781888300000,-1356.93,0.00036712,30]
[425784950,1781888300000,-507.51,0.00036712,30]
[425784897,1781888300000,-1286.36,0.00036657,30]
[425784895,1781888300000,-5781.35,0.00036657,30]
[425784898,1781888300000,-500.0,0.00036657,30]
[425784894,1781888300000,-1257.63,0.00036657,30]
[425784900,1781888300000,-4625.81,0.00036657,30]
[425784903,1781888300000,-924.86,0.00036657,30]
[425784896,1781888300000,-8051.7,0.00036657,30]
[425784902,1781888300000,-3037.54,0.00036657,30]
[425784899,1781888300000,-764.17,0.00036657,30]
[425784901,1781888300000,-1885.01,0.00036657,30]
[425784905,1781888300000,-552.68,0.00036657,30]
[425784924,1781888300000,-108541.61,0.000367,2]
[425784906,1781888300000,-914.03,0.00036657,30]
[425784916,1781888300000,-651.48,0.00036657,30]
[425784907,1781888300000,-770.28,0.00036657,30]
[425784908,1781888300000,-500.0,0.00036657,30]
[425784912,1781888300000,-1720.71,0.00036657,30]
[425784910,1781888300000,-710.65,0.00036657,30]
[425784913,1781888300000,-1936.23,0.00036657,30]
[425784909,1781888300000,-1108.92,0.00036657,30]
[425784911,1781888300000,-3165.0,0.00036657,30]
[425784917,1781888300000,-1131.94,0.00036657,30]
[425784920,1781888300000,-1000.78,0.00036657,30]
[425784923,1781888300000,-191.9,0.000367,30]
[425784929,1781888300000,-508.71,0.00036712,30]
[425784915,1781888300000,-850.26,0.00036657,30]
[425784904,1781888300000,-1085.5,0.00036657,30]
[425784951,1781888300000,-759.52,0.00036712,30]
[425784954,1781888300000,-547.88,0.00036712,30]
[425784985,1781888300000,-947.68,0.00036712,30]
[425784995,1781888300000,-585.97,0.00036712,30]
[425784987,1781888300000,-970.43,0.00036712,30]
[425784988,1781888300000,-658.41,0.00036712,30]
[425784986,1781888300000,-598.87,0.00036712,30]
[425784984,1781888300000,-285.71099988,0.00036712,30]
[425784991,1781888300000,-649.08,0.00036712,30]
[425784989,1781888300000,-1083.37,0.00036712,30]
[425784992,1781888300000,-500.0,0.00036712,30]
[425784993,1781888300000,-650.2,0.00036712,30]
[425784990,1781888300000,-846.54,0.00036712,30]
[425784996,1781888300000,-846.43,0.00036712,30]
[425784999,1781888300000,-697.26,0.00036712,30]
[425785000,1781888300000,-500.0,0.00036712,30]
[425785002,1781888300000,-734.22,0.00036712,30]
[425785008,1781888300000,-505.49,0.00036712,30]
[425784997,1781888300000,-1580.21,0.00036712,30]
[425785004,1781888300000,-1586.38,0.00036712,30]
[425785001,1781888300000,-386.75892594,0.00036712,30]
[425784998,1781888300000,-678.01,0.00036712,30]
[425785005,1781888300000,-755.8,0.00036712,30]
[425785003,1781888300000,-651.01,0.00036712,30]
[425785007,1781888300000,-860.38,0.00036712,30]
[425785006,1781888300000,-522.21,0.00036712,30]
[425784960,1781888300000,-500.0,0.00036712,30]
[425784973,1781888300000,-636.13,0.00036712,30]
[425784983,1781888300000,-2588.84,0.00036712,30]
[425784994,1781888300000,-1066.11,0.00036712,30]
[425784981,1781888300000,-662.63,0.00036712,30]
[425784952,1781888300000,-627.51,0.00036712,30]
[425784979,1781888300000,-900.24,0.00036712,30]
[425784958,1781888300000,-500.0,0.00036712,30]
[425784955,1781888300000,-1348.31,0.00036712,30]
[425784959,1781888300000,-1145.24,0.00036712,30]
[425784953,1781888300000,-544.23,0.00036712,30]
[425784956,1781888300000,-664.75,0.00036712,30]
[425784957,1781888300000,-537.97,0.00036712,30]
[425784963,1781888300000,-780.74,0.00036712,30]
[425784961,1781888300000,-634.83,0.00036712,30]
[425784964,1781888300000,-743.84,0.00036712,30]
[425784962,1781888300000,-594.02,0.00036712,30]
[425784966,1781888300000,-2492.23,0.00036712,30]
[425784965,1781888300000,-1013.87,0.00036712,30]
[425784982,1781888300000,-643.62,0.00036712,30]
[425784978,1781888300000,-918.47,0.00036712,30]
[425784969,1781888300000,-1109.66,0.00036712,30]
[425784975,1781888300000,-620.19,0.00036712,30]
[425784976,1781888300000,-628.07,0.00036712,30]
[425784977,1781888300000,-722.6,0.00036712,30]
[425784974,1781888300000,-1182.85,0.00036712,30]
[425784980,1781888300000,-636.4,0.00036712,30]
[425784968,1781888300000,-1013.66,0.00036712,30]
[425784970,1781888300000,-574.37,0.00036712,30]
[425784971,1781888300000,-2528.15,0.00036712,30]
[425784967,1781888300000,-577.97,0.00036712,30]
[425784972,1781888300000,-695.27,0.00036712,30]
[425785047,1781888301000,-1265.07,0.00036712,30]
[425785049,1781888301000,-510.64,0.00036712,30]
[425785053,1781888301000,-1656.0,0.00036712,30]
[425785054,1781888301000,-592.13,0.00036712,30]
[425785046,1781888301000,-757.69,0.00036712,30]
[425785040,1781888301000,-575.14,0.00036712,30]
[425785042,1781888301000,-721.82,0.00036712,30]
[425785041,1781888301000,-500.0,0.00036712,30]
[425785039,1781888301000,-537.57,0.00036712,30]
[425785044,1781888301000,-1264.79,0.00036712,30]
[425785048,1781888301000,-693.9,0.00036712,30]
[425785043,1781888301000,-1000.0,0.00036712,30]
[425785050,1781888301000,-2137.39,0.00036712,30]
[425785062,1781888301000,-3646.26,0.00036712,30]
[425785056,1781888301000,-857.32,0.00036712,30]
[425785057,1781888301000,-500.0,0.00036712,30]
[425785051,1781888301000,-1423.78,0.00036712,30]
[425785055,1781888301000,-721.41,0.00036712,30]
[425785069,1781888301000,-711.87,0.00036712,30]
[425785059,1781888301000,-534.92,0.00036712,30]
[425785070,1781888301000,-809.43,0.00036712,30]
[425785058,1781888301000,-500.0,0.00036712,2]
[425785061,1781888301000,-1123.62,0.00036712,30]
[425785060,1781888301000,-961.56,0.00036712,30]
[425785071,1781888301000,-5085.36,0.00036712,30]
[425785038,1781888301000,-621.71,0.00036712,30]
[425785052,1781888301000,-1391.17,0.00036712,30]
[425785037,1781888301000,-958.15,0.00036712,30]
[425785020,1781888301000,-251.42905454,0.00036712,30]
[425785035,1781888301000,-652.73,0.00036712,30]
[425785010,1781888301000,-512.48,0.00036712,30]
[425785009,1781888301000,-500.0,0.00036712,30]
[425785011,1781888301000,-515.79,0.00036712,30]
[425785012,1781888301000,-802.44,0.00036712,30]
[425785013,1781888301000,-807.08,0.00036712,30]
[425785017,1781888301000,-500.0,0.00036712,30]
[425785014,1781888301000,-526.37,0.00036712,30]
[425785019,1781888301000,-1214.29,0.00036712,30]
[425785018,1781888301000,-500.0,0.00036712,30]
[425785016,1781888301000,-1188.41,0.00036712,30]
[425785063,1781888301000,-2000.0,0.00036712,4]
[425785015,1781888301000,-710.03,0.00036712,30]
[425785021,1781888301000,-1675.21,0.00036712,30]
[425785023,1781888301000,-507.45,0.00036712,2]
[425785024,1781888301000,-565.87,0.00036712,30]
[425785022,1781888301000,-607.03,0.00036712,30]
[425785030,1781888301000,-985.23,0.00036712,30]
[425785031,1781888301000,-2092.1,0.00036712,30]
[425785028,1781888301000,-853.91,0.00036712,30]
[425785033,1781888301000,-650.27,0.00036712,30]
[425785025,1781888301000,-607.04,0.00036712,30]
[425785027,1781888301000,-575.06,0.00036712,30]
[425785026,1781888301000,-500.0,0.00036712,30]
[425785029,1781888301000,-500.0,0.00036712,30]
[425785032,1781888301000,-1444.74,0.00036712,30]
[425785045,1781888301000,-552.56,0.00036712,30]
[425785034,1781888301000,-640.19,0.00036712,30]
[425785036,1781888301000,-737.33,0.00036712,30]
[425785064,1781888301000,-1427.66,0.00036712,30]
[425785116,1781888301000,-747.58,0.00036767,30]
[425785068,1781888301000,-371.72998724,0.00036712,30]
[425785105,1781888301000,-769.14,0.00036767,30]
[425785104,1781888301000,-1356.93,0.00036767,30]
[425785103,1781888301000,-350.0,0.00036765,2]
[425785101,1781888301000,-150.0,0.00036747,2]
[425785102,1781888301000,-4478.0,0.00036752,10]
[425785107,1781888301000,-536.88,0.00036767,30]
[425785117,1781888301000,-1017.11,0.00036767,30]
[425785108,1781888301000,-508.71,0.00036767,30]
[425785110,1781888301000,-531.64,0.00036767,30]
[425785106,1781888301000,-544.12,0.00036767,30]
[425785109,1781888301000,-638.80152031,0.00036767,30]
[425785113,1781888301000,-809.71,0.00036767,30]
[425785100,1781888301000,-329.61,0.00036735,2]
[425785114,1781888301000,-923.44,0.00036767,30]
[425785112,1781888301000,-1095.52,0.00036767,30]
[425785118,1781888301000,-674.8,0.00036767,30]
[425785123,1781888301000,-662.39,0.00036767,30]
[425785124,1781888301000,-1286.29,0.00036767,30]
[425785120,1781888301000,-996.41,0.00036767,30]
[425785119,1781888301000,-588.74,0.00036767,30]
[425785121,1781888301000,-517.19,0.00036767,30]
[425785122,1781888301000,-1338.57,0.00036767,30]
[425785126,1781888301000,-507.51,0.00036767,30]
[425785125,1781888301000,-833.48,0.00036767,30]
[425785127,1781888301000,-759.52,0.00036767,30]
[425785065,1781888301000,-631.67,0.00036712,30]
[425785111,1781888301000,-578.3,0.00036767,30]
[425785099,1781888301000,-266.3505751,0.0003673,7]
[425785115,1781888301000,-580.64,0.00036767,30]
[425785098,1781888301000,-1000.78,0.00036712,30]
[425785067,1781888301000,-562.71,0.00036712,30]
[425785073,1781888301000,-1257.63,0.00036712,30]
[425785072,1781888301000,-1877.0,0.00036712,2]
[425785074,1781888301000,-5781.35,0.00036712,30]
[425785079,1781888301000,-4625.81,0.00036712,30]
[425785077,1781888301000,-450.00488548,0.00036712,30]
[425785080,1781888301000,-1885.01,0.00036712,30]
[425785082,1781888301000,-924.86,0.00036712,30]
[425785075,1781888301000,-8051.7,0.00036712,30]
[425785083,1781888301000,-1085.5,0.00036712,30]
[425785066,1781888301000,-711.69,0.00036712,30]
[425785078,1781888301000,-764.17,0.00036712,30]
[425785076,1781888301000,-1286.36,0.00036712,30]
[425785096,1781888301000,-1131.94,0.00036712,30]
[425785087,1781888301000,-500.0,0.00036712,30]
[425785097,1781888301000,-1252.38,0.00036712,30]
[425785095,1781888301000,-651.48,0.00036712,30]
[425785091,1781888301000,-1720.71,0.00036712,30]
[425785081,1781888301000,-3037.54,0.00036712,30]
[425785094,1781888301000,-850.26,0.00036712,30]
[425785092,1781888301000,-1936.23,0.00036712,30]
[425785089,1781888301000,-710.65,0.00036712,30]
[425785090,1781888301000,-3165.0,0.00036712,30]
[425785088,1781888301000,-1108.92,0.00036712,30]
[425785084,1781888301000,-552.68,0.00036712,30]
[425785086,1781888301000,-770.28,0.00036712,30]
[425785085,1781888301000,-914.03,0.00036712,30]
[425785093,1781888301000,-917.69,0.00036712,30]
[425785177,1781888302000,-651.01,0.00036767,30]
[425785176,1781888302000,-734.22,0.00036767,30]
[425785166,1781888302000,-649.08,0.00036767,30]
[425785162,1781888302000,-970.43,0.00036767,30]
[425785161,1781888302000,-598.87,0.00036767,30]
[425785159,1781888302000,-2588.84,0.00036767,30]
[425785157,1781888302000,-662.63,0.00036767,30]
[425785158,1781888302000,-643.62,0.00036767,30]
[425785164,1781888302000,-1083.37,0.00036767,30]
[425785163,1781888302000,-658.41,0.00036767,30]
[425785167,1781888302000,-505.39167366,0.00036767,30]
[425785160,1781888302000,-947.68,0.00036767,30]
[425785168,1781888302000,-650.2,0.00036767,30]
[425785174,1781888302000,-697.26,0.00036767,30]
[425785175,1781888302000,-500.0,0.00036767,30]
[425785170,1781888302000,-585.97,0.00036767,30]
[425785173,1781888302000,-678.01,0.00036767,30]
[425785171,1781888302000,-846.43,0.00036767,30]
[425785172,1781888302000,-1580.21,0.00036767,30]
[425785181,1781888302000,-860.38,0.00036767,30]
[425785178,1781888302000,-1586.38,0.00036767,30]
[425785179,1781888302000,-755.8,0.00036767,30]
[425785188,1781888302000,-526.37,0.00036767,30]
[425785182,1781888302000,-505.49,0.00036767,30]
[425785183,1781888302000,-500.0,0.00036767,30]
[425785154,1781888302000,-918.47,0.00036767,30]
[425785169,1781888302000,-1066.11,0.00036767,30]
[425785165,1781888302000,-846.54,0.00036767,30]
[425785152,1781888302000,-628.07,0.00036767,30]
[425785153,1781888302000,-722.6,0.00036767,30]
[425785128,1781888302000,-627.51,0.00036767,30]
[425785131,1781888302000,-1348.31,0.00036767,30]
[425785130,1781888302000,-547.88,0.00036767,30]
[425785132,1781888302000,-664.75,0.00036767,30]
[425785133,1781888302000,-537.97,0.00036767,30]
[425785134,1781888302000,-418.72575208,0.00036767,30]
[425785129,1781888302000,-544.23,0.00036767,30]
[425785137,1781888302000,-634.83,0.00036767,30]
[425785139,1781888302000,-780.74,0.00036767,30]
[425785140,1781888302000,-743.84,0.00036767,30]
[425785138,1781888302000,-594.02,0.00036767,30]
[425785135,1781888302000,-1145.24,0.00036767,30]
[425785156,1781888302000,-636.4,0.00036767,30]
[425785136,1781888302000,-500.0,0.00036767,30]
[425785187,1781888302000,-802.44,0.00036767,30]
[425785141,1781888302000,-1013.87,0.00036767,30]
[425785143,1781888302000,-577.97,0.00036767,30]
[425785144,1781888302000,-1013.66,0.00036767,30]
[425785147,1781888302000,-2528.15,0.00036767,30]
[425785145,1781888302000,-1109.66,0.00036767,30]
[425785150,1781888302000,-1182.85,0.00036767,30]
[425785148,1781888302000,-695.27,0.00036767,30]
[425785149,1781888302000,-636.13,0.00036767,30]
[425785146,1781888302000,-574.37,0.00036767,30]
[425785151,1781888302000,-620.19,0.00036767,30]
[425785155,1781888302000,-900.24,0.00036767,30]
[425785142,1781888302000,-2492.23,0.00036767,30]
[425785185,1781888302000,-515.79,0.00036767,30]
[425785186,1781888302000,-807.08,0.00036767,30]
[425785180,1781888302000,-522.21,0.00036767,30]
[425785216,1781888302000,-1000.0,0.00036767,30]
[425785218,1781888302000,-552.56,0.00036767,30]
[425785219,1781888302000,-757.69,0.00036767,30]
[425785222,1781888302000,-510.64,0.00036767,30]
[425785220,1781888302000,-1265.07,0.00036767,30]
[425785221,1781888302000,-693.9,0.00036767,30]
[425785226,1781888302000,-1656.0,0.00036767,30]
[425785229,1781888302000,-857.32,0.00036767,30]
[425785231,1781888302000,-500.0,0.00036767,2]
[425785230,1781888302000,-500.0,0.00036767,30]
[425785227,1781888302000,-592.13,0.00036767,30]
[425785232,1781888302000,-534.92,0.00036767,30]
[425785235,1781888302000,-3646.26,0.00036767,30]
[425785228,1781888302000,-721.41,0.00036767,30]
[425785233,1781888302000,-961.56,0.00036767,30]
[425785184,1781888302000,-512.48,0.00036767,30]
[425785234,1781888302000,-1123.62,0.00036767,30]
[425785238,1781888302000,-631.67,0.00036767,30]
[425785237,1781888302000,-1427.66,0.00036767,30]
[425785246,1781888302000,-5781.35,0.00036767,30]
[425785239,1781888302000,-711.69,0.00036767,30]
[425785240,1781888302000,-562.71,0.00036767,30]
[425785242,1781888302000,-809.43,0.00036767,30]
[425785243,1781888302000,-5085.36,0.00036767,30]
[425785245,1781888302000,-1257.63,0.00036767,30]
[425785241,1781888302000,-711.87,0.00036767,30]
[425785244,1781888302000,-1877.0,0.00036767,2]
[425785217,1781888302000,-1264.79,0.00036767,30]
[425785214,1781888302000,-460.50033494,0.00036767,30]
[425785236,1781888302000,-2000.0,0.00036767,4]
[425785224,1781888302000,-1423.78,0.00036767,30]
[425785223,1781888302000,-2137.39,0.00036767,30]
[425785190,1781888302000,-1188.41,0.00036767,30]
[425785200,1781888302000,-575.06,0.00036767,30]
[425785193,1781888302000,-1214.29,0.00036767,30]
[425785189,1781888302000,-710.03,0.00036767,30]
[425785192,1781888302000,-500.0,0.00036767,30]
[425785198,1781888302000,-607.04,0.00036767,30]
[425785197,1781888302000,-565.87,0.00036767,30]
[425785194,1781888302000,-1675.21,0.00036767,30]
[425785199,1781888302000,-500.0,0.00036767,30]
[425785196,1781888302000,-507.45,0.00036767,2]
[425785195,1781888302000,-607.03,0.00036767,30]
[425785201,1781888302000,-853.91,0.00036767,30]
[425785191,1781888302000,-374.31822901,0.00036767,30]
[425785205,1781888302000,-1444.74,0.00036767,30]
[425785202,1781888302000,-500.0,0.00036767,30]
[425785212,1781888302000,-537.57,0.00036767,30]
[425785203,1781888302000,-985.23,0.00036767,30]
[425785213,1781888302000,-575.14,0.00036767,30]
[425785207,1781888302000,-640.19,0.00036767,30]
[425785208,1781888302000,-652.73,0.00036767,30]
[425785204,1781888302000,-2092.1,0.00036767,30]
[425785210,1781888302000,-958.15,0.00036767,30]
[425785225,1781888302000,-1391.17,0.00036767,30]
[425785209,1781888302000,-737.33,0.00036767,30]
[425785211,1781888302000,-621.71,0.00036767,30]
[425785215,1781888302000,-721.82,0.00036767,30]
[425785206,1781888302000,-650.27,0.00036767,30]
[425785269,1781888303000,-1000.78,0.00036767,30]
[425785268,1781888303000,-1252.38,0.00036767,30]
[425785267,1781888303000,-1131.94,0.00036767,30]
[425785266,1781888303000,-651.48,0.00036767,30]
[425785273,1781888303000,-2329.0,0.00036815,11]
[425785264,1781888303000,-917.69,0.00036767,30]
[425785270,1781888303000,-2329.0,0.00036793,11]
[425785285,1781888303000,-747.58,0.00036821,30]
[425785283,1781888303000,-923.44,0.00036821,30]
[425785279,1781888303000,-531.64,0.00036821,30]
[425785274,1781888303000,-1356.93,0.00036821,30]
[425785278,1781888303000,-508.71,0.00036821,30]
[425785276,1781888303000,-544.12,0.00036821,30]
[425785277,1781888303000,-536.88,0.00036821,30]
[425785284,1781888303000,-580.64,0.00036821,30]
[425785263,1781888303000,-1936.23,0.00036767,30]
[425785281,1781888303000,-1095.52,0.00036821,30]
[425785271,1781888303000,-5688.98,0.000368,90]
[425785254,1781888303000,-1085.5,0.00036767,30]
[425785272,1781888303000,-922.788,0.000368,120]
[425785280,1781888303000,-578.3,0.00036821,30]
[425785247,1781888303000,-8051.7,0.00036767,30]
[425785248,1781888303000,-1286.36,0.00036767,30]
[425785253,1781888303000,-924.86,0.00036767,30]
[425785259,1781888303000,-1108.92,0.00036767,30]
[425785257,1781888303000,-770.28,0.00036767,30]
[425785251,1781888303000,-1885.01,0.00036767,30]
[425785262,1781888303000,-1720.71,0.00036767,30]
[425785252,1781888303000,-3037.54,0.00036767,30]
[425785250,1781888303000,-4625.81,0.00036767,30]
[425785260,1781888303000,-710.65,0.00036767,30]
[425785255,1781888303000,-552.68,0.00036767,30]
[425785258,1781888303000,-500.0,0.00036767,30]
[425785256,1781888303000,-914.03,0.00036767,30]
[425785261,1781888303000,-3165.0,0.00036767,30]
[425785265,1781888303000,-850.26,0.00036767,30]
[425785249,1781888303000,-764.17,0.00036767,30]